fUST/lending_fUST_20250930
["ID","MTS","AMOUNT","RATE_DAILY","PERIOD"]
[388580656,1759245092120,-500.0,0.00035821,2]
[388580657,1759245092130,-500.0,0.00035821,2]
[388580658,1759245092140,-423.36734479,0.00035821,2]
[388580659,1759245092150,-500.0,0.00035821,2]
[388580660,1759245092159,-500.0,0.00035821,2]
[388580661,1759245092169,-500.0,0.00035821,2]
[388580662,1759245092179,-500.0,0.00035821,2]
[388580663,1759245092190,-500.0,0.00035821,2]
[388580664,1759245092200,-500.0,0.00035821,2]
[388580665,1759245092210,-500.0,0.00035821,2]
[388580666,1759245092220,-500.0,0.00035821,2]
[388580667,1759245092231,-500.0,0.00035821,2]
[388580668,1759245092241,-500.0,0.00035821,2]
[388580669,1759245092251,-420.0,0.00035821,2]
[388580670,1759245092261,-500.0,0.00035821,2]
[388580671,1759245092271,-500.0,0.00035821,2]
[388580672,1759245092280,-500.0,0.00035821,2]
[388580673,1759245092290,-460.0,0.00035821,2]
[388580674,1759245092299,-500.0,0.00035821,2]
[388580675,1759245092309,-500.0,0.00035821,2]
[388580676,1759245092319,-500.0,0.00035821,2]
[388580677,1759245092337,-500.0,0.00035821,2]
[388580678,1759245092347,-500.0,0.00035821,2]
[388580679,1759245092356,-500.0,0.00035821,2]
[388580680,1759245092366,-561.25,0.00035821,2]
[388580681,1759245092376,-609.6,0.00035821,2]
[388580682,1759245092386,-500.0,0.00035821,2]
[388580683,1759245092396,-500.0,0.00035821,2]
[388580684,1759245092406,-651.62,0.00035821,2]
[388580685,1759245092416,-500.0,0.00035821,2]
[388580686,1759245092425,-500.0,0.00035821,2]
[388580687,1759245092435,-249.26330181,0.00035821,2]
[388580688,1759245092445,-500.0,0.00035821,2]
[388580689,1759245092455,-500.0,0.00035821,2]
[388580690,1759245092465,-500.0,0.00035821,2]
[388580691,1759245092475,-500.0,0.00035821,2]
[388580692,1759245092484,-500.0,0.00035821,2]
[388580693,1759245092494,-500.0,0.00035821,2]
[388580694,1759245092504,-200.0,0.00035821,2]
[388580695,1759245092513,-500.0,0.00035821,2]
[388580696,1759245092523,-647.85927884,0.00035821,2]
[388580697,1759245092532,-500.0,0.00035821,2]
[388580698,1759245092541,-635.70414914,0.00035821,2]
[388580699,1759245092551,-500.0,0.00035821,2]
[388580700,1759245092560,-500.0,0.00035821,2]
[388580701,1759245092570,-160.0,0.00036,7]
[388580702,1759245092584,-479.98,0.00036095,16]
[388580703,1759245092593,-500.0,0.00036095,2]
[388580704,1759245092603,-500.0,0.00036095,2]
[388580705,1759245092613,-500.0,0.00036095,2]
[388580706,1759245092623,-500.0,0.00036095,2]
[388580707,1759245092633,-500.0,0.00036095,2]
[388580708,1759245092643,-500.0,0.00036095,2]
[388580709,1759245092653,-500.0,0.00036095,2]
[388580710,1759245092664,-500.0,0.00036095,2]
[388580711,1759245092673,-500.0,0.00036095,2]
[388580712,1759245092682,-500.0,0.00036095,2]
[388580713,1759245092693,-500.0,0.00036095,2]
[388580714,1759245092703,-500.0,0.00036095,2]
[388580715,1759245092713,-500.0,0.00036095,2]
[388580716,1759245092722,-500.0,0.00036095,2]
[388580717,1759245092731,-500.0,0.00036095,2]
[388580718,1759245092741,-500.0,0.00036095,2]
[388580719,1759245092751,-500.0,0.00036095,2]
[388580720,1759245092760,-500.0,0.00036095,2]
[388580721,1759245092770,-500.0,0.00036095,2]
[388580722,1759245092788,-500.0,0.00036095,2]
[388580723,1759245092798,-500.0,0.00036095,2]
[388580724,1759245092808,-561.25,0.00036095,2]
[388580725,1759245092819,-609.6,0.00036095,2]
[388580726,1759245092833,-500.0,0.00036095,2]
[388580727,1759245092843,-500.0,0.00036095,2]
[388580728,1759245092853,-651.62,0.00036095,2]
[388580729,1759245092862,-537.83076518,0.00036095,2]
[388580730,1759245092872,-500.0,0.00036095,2]
[388580731,1759245092882,-500.0,0.00036095,2]
[388580732,1759245092892,-500.0,0.00036095,2]
[388580733,1759245092902,-500.0,0.00036095,2]
[388580734,1759245092912,-500.0,0.00036095,2]
[388580735,1759245092923,-500.0,0.00036095,2]
[388580736,1759245092932,-500.0,0.00036095,2]
[388580737,1759245092942,-200.0,0.00036095,2]
[388580738,1759245092951,-500.0,0.00036095,2]
[388580739,1759245092961,-500.0,0.00036095,2]
[388580740,1759245092971,-500.0,0.00036095,2]
[388580741,1759245092981,-500.0,0.00036095,2]
[388580742,1759245092990,-203.18357393,0.0003621,2]
[388580743,1759245093000,-264.28483005,0.0003624,2]
[388580744,1759245093010,-360.0046133,0.00036365,2]
[388580745,1759245093019,-500.0,0.00036369,2]
[388580746,1759245093029,-500.0,0.00036369,2]
[388580747,1759245093038,-500.0,0.00036369,2]
[388580748,1759245093047,-500.0,0.00036369,2]
[388580749,1759245093056,-500.0,0.00036369,2]
[388580750,1759245093066,-500.0,0.00036369,2]
[388580751,1759245093079,-500.0,0.00036369,2]
[388580752,1759245093088,-500.0,0.00036369,2]
[388580753,1759245093215,-500.0,0.00036369,2]
[388580754,1759245093225,-500.0,0.00036369,2]
[388580755,1759245093234,-500.0,0.00036369,2]
[388580756,1759245093244,-500.0,0.00036369,2]
[388580757,1759245093254,-454.86168406,0.00036369,2]
[388580758,1759245093263,-602.70522083,0.00036369,2]
[388580759,1759245093273,-500.0,0.00036369,2]
[388580760,1759245093282,-500.0,0.00036369,2]
[388580761,1759245093291,-500.0,0.00036369,2]
[388580762,1759245093301,-500.0,0.00036369,2]
[388580763,1759245093311,-500.0,0.00036369,2]
[388580764,1759245093321,-500.0,0.00036369,2]
[388580765,1759245093333,-500.0,0.00036369,2]
[388580766,1759245093343,-561.25,0.00036369,2]
[388580767,1759245093352,-609.6,0.00036369,2]
[388580768,1759245093363,-500.0,0.00036369,2]
[388580769,1759245093374,-500.0,0.00036369,2]
[388580770,1759245093384,-651.62,0.00036369,2]
[388580771,1759245093394,-500.0,0.00036369,2]
[388580772,1759245093404,-500.0,0.00036369,2]
[388580773,1759245093413,-500.0,0.00036369,2]
[388580774,1759245093423,-500.0,0.00036369,2]
[388580775,1759245093433,-225.70111825,0.00036369,2]
[388580776,1759245093444,-500.0,0.00036369,2]
[388580777,1759245093453,-500.0,0.00036369,2]
[388580778,1759245093464,-200.0,0.00036369,2]
[388580779,1759245093474,-556.01549264,0.00036369,2]
[388580780,1759245093484,-500.0,0.00036369,2]
[388580781,1759245093493,-508.73399334,0.00036369,2]
[388580782,1759245093503,-500.0,0.00036369,2]
[388580783,1759245093513,-160.0,0.00036369,7]
[388580784,1759245093523,-479.98,0.00036643,17]
[388580785,1759245093532,-500.0,0.00036643,2]
[388580786,1759245093542,-500.0,0.00036643,2]
[388580787,1759245093552,-500.0,0.00036643,2]
[388580788,1759245093562,-500.0,0.00036643,2]
[388580789,1759245093572,-500.0,0.00036643,2]
[388580790,1759245093584,-500.0,0.00036643,2]
[388580791,1759245093594,-500.0,0.00036643,2]
[388580792,1759245093604,-500.0,0.00036643,2]
[388580793,1759245093614,-500.0,0.00036643,2]
[388580794,1759245093624,-500.0,0.00036643,2]
[388580795,1759245093633,-470.219369,0.00036643,2]
[388580796,1759245093643,-500.0,0.00036643,2]
[388580797,1759245093653,-500.0,0.00036643,2]
[388580798,1759245093663,-500.0,0.00036643,2]
[388580799,1759245093672,-500.0,0.00036643,2]
[388580800,1759245093682,-500.0,0.00036643,2]
[388580801,1759245093691,-500.0,0.00036643,2]
[388580802,1759245093709,-500.0,0.00036643,2]
[388580803,1759245093721,-500.0,0.00036643,2]
[388580804,1759245093731,-561.25,0.00036643,2]
[388580805,1759245093741,-609.6,0.00036643,2]
[388580806,1759245093751,-311.4717638,0.00036643,2]
[388580807,1759245093762,-500.0,0.00036643,2]
[388580808,1759245093772,-651.62,0.00036643,2]
[388580809,1759245093787,-500.0,0.00036643,2]
[388580810,1759245093797,-427.68990312,0.00036643,2]
[388580811,1759245093807,-500.0,0.00036643,2]
[388580812,1759245093818,-500.0,0.00036643,2]
[388580813,1759245093832,-500.0,0.00036643,2]
[388580814,1759245093842,-500.0,0.00036643,2]
[388580815,1759245093851,-200.0,0.00036643,2]
[388580816,1759245093862,-500.0,0.00036643,2]
[388580817,1759245093872,-500.0,0.00036643,2]
[388580818,1759245093882,-500.0,0.00036917,2]
[388580819,1759245093892,-500.0,0.00036917,2]
[388580820,1759245093902,-500.0,0.00036917,2]
[388580821,1759245093911,-500.0,0.00036917,2]
[388580822,1759245093920,-500.0,0.00036917,2]
[388580823,1759245093930,-500.0,0.00036917,2]
[388580824,1759245093940,-500.0,0.00036917,2]
[388580825,1759245093949,-500.0,0.00036917,2]
[388580826,1759245093959,-500.0,0.00036917,2]
[388580827,1759245093969,-500.0,0.00036917,2]
[388580828,1759245093979,-500.0,0.00036917,2]
[388580829,1759245093989,-298.06386832,0.00036917,2]
[388580830,1759245093999,-500.0,0.00036917,2]
[388580831,1759245094008,-500.0,0.00036917,2]
[388580832,1759245094017,-500.0,0.00036917,2]
[388580833,1759245094028,-510.79517046,0.00036917,2]
[388580834,1759245094037,-500.0,0.00036917,2]
[388580835,1759245094047,-500.0,0.00036917,2]
[388580836,1759245094057,-561.25,0.00036917,2]
[388580837,1759245094069,-609.6,0.00036917,2]
[388580838,1759245094082,-500.0,0.00036917,2]
[388580839,1759245094092,-651.62,0.00036917,2]
[388580840,1759245094102,-500.0,0.00036917,2]
[388580841,1759245094113,-500.0,0.00036917,2]
[388580842,1759245094123,-500.0,0.00036917,2]
[388580843,1759245094133,-500.0,0.00036917,2]
[388580844,1759245094143,-500.0,0.00036917,2]
[388580845,1759245094153,-200.0,0.00036917,2]
[388580846,1759245094163,-500.0,0.00036917,2]
[388580847,1759245094174,-500.0,0.00036917,2]
[388580848,1759245094184,-1101.50279727,0.00037,120]
[388580849,1759245094195,-479.98,0.00037191,18]
[388580850,1759245094205,-500.0,0.00037191,2]
[388580851,1759245094214,-500.0,0.00037191,2]
[388580852,1759245094224,-500.0,0.00037191,2]
[388580853,1759245094234,-500.0,0.00037191,2]
[388580854,1759245094244,-500.0,0.00037191,2]
[388580855,1759245094254,-500.0,0.00037191,2]
[388580856,1759245094264,-500.0,0.00037191,2]
[388580857,1759245094275,-500.0,0.00037191,2]
[388580858,1759245094285,-500.0,0.00037191,2]
[388580859,1759245094294,-500.0,0.00037191,2]
[388580860,1759245094304,-500.0,0.00037191,2]
[388580861,1759245094313,-500.0,0.00037191,2]
[388580862,1759245094323,-500.0,0.00037191,2]
[388580863,1759245094341,-500.0,0.00037191,2]
[388580864,1759245094351,-500.0,0.00037191,2]
[388580865,1759245094360,-500.0,0.00037191,2]
[388580866,1759245094370,-561.25,0.00037191,2]
[388580867,1759245094381,-609.6,0.00037191,2]
[388580868,1759245094390,-304.37715295,0.00037191,2]
[388580869,1759245094399,-651.62,0.00037191,2]
[388580870,1759245094409,-500.0,0.00037191,2]
[388580871,1759245094418,-500.0,0.00037191,2]
[388580872,1759245094428,-500.0,0.00037191,2]
[388580873,1759245094438,-500.0,0.00037191,2]
[388580874,1759245094447,-500.0,0.00037191,2]
[388580875,1759245094456,-200.0,0.00037191,2]
[388580876,1759245094466,-500.0,0.00037191,2]
[388580877,1759245094475,-500.0,0.00037191,2]
[388580878,1759245094485,-160.0,0.00037319,8]
[388580879,1759245094494,-500.0,0.00037465,2]
[388580880,1759245094503,-500.0,0.00037465,2]
[388580881,1759245094513,-500.0,0.00037465,2]
[388580882,1759245094522,-500.0,0.00037465,2]
[388580883,1759245094531,-500.0,0.00037465,2]
[388580884,1759245094540,-500.0,0.00037465,2]
[388580885,1759245094550,-500.0,0.00037465,2]
[388580886,1759245094559,-500.0,0.00037465,2]
[388580887,1759245094568,-500.0,0.00037465,2]
[388580888,1759245094582,-500.0,0.00037465,2]
[388580889,1759245094592,-377.12015619,0.00037465,2]
[388580890,1759245094602,-500.0,0.00037465,2]
[388580891,1759245094611,-500.0,0.00037465,2]
[388580892,1759245094620,-437.49593444,0.00037465,2]
[388580893,1759245094630,-500.0,0.00037465,2]
[388580894,1759245094640,-197.93675447,0.00037465,2]
[388580895,1759245094649,-561.25,0.00037465,2]
[388580896,1759245094659,-609.6,0.00037465,2]
[388580897,1759245094668,-651.62,0.00037465,2]
[388580898,1759245094677,-500.0,0.00037465,2]
[388580899,1759245094687,-557.12578999,0.00037465,2]
[388580900,1759245094697,-500.0,0.00037465,2]
[388580901,1759245094707,-500.0,0.00037465,2]
[388580902,1759245094717,-500.0,0.00037465,2]
[388580903,1759245094727,-200.0,0.00037465,2]
[388580904,1759245094737,-500.0,0.00037465,2]
[388580905,1759245094747,-220.56713708,0.00037465,2]
[388580906,1759245094756,-479.98,0.00037739,19]
[388580907,1759245094766,-283.1955913,0.00037739,2]
[388580908,1759245094775,-500.0,0.00037739,2]
[388580909,1759245094789,-500.0,0.00037739,2]
[388580910,1759245094803,-500.0,0.00037739,2]
[388580911,1759245094813,-500.0,0.00037739,2]
[388580912,1759245094824,-500.0,0.00037739,2]
[388580913,1759245094837,-500.0,0.00037739,2]
[388580914,1759245094847,-500.0,0.00037739,2]
[388580915,1759245094857,-500.0,0.00037739,2]
[388580916,1759245094868,-500.0,0.00037739,2]
[388580917,1759245094877,-500.0,0.00037739,2]
[388580918,1759245094887,-500.0,0.00037739,2]
[388580919,1759245094896,-500.0,0.00037739,2]
[388580920,1759245094906,-561.25,0.00037739,2]
[388580921,1759245094916,-609.6,0.00037739,2]
[388580922,1759245094925,-651.62,0.00037739,2]
[388580923,1759245094936,-249.50262917,0.00037739,2]
[388580924,1759245094945,-500.0,0.00037739,2]
[388580925,1759245094955,-500.0,0.00037739,2]
[388580926,1759245094965,-500.0,0.00037739,2]
[388580927,1759245094975,-200.0,0.00037739,2]
[388580928,1759245094985,-500.0,0.00037739,2]
[388580929,1759245094994,-1013.58805857,0.000378,2]
[388580930,1759245095004,-361.16038322,0.00037934,30]
[388580931,1759245095014,-161.098322,0.00038,7]
[388580932,1759245095023,-156.26796631,0.00038,120]
[388580933,1759245095033,-156.26796631,0.00038,120]
[388580934,1759245095043,-156.26796631,0.00038,120]
[388580935,1759245095053,-500.0,0.00038013,2]
[388580936,1759245095062,-500.0,0.00038013,2]
[388580937,1759245095072,-500.0,0.00038013,2]
[388580938,1759245095086,-500.0,0.00038013,2]
[388580939,1759245095096,-500.0,0.00038013,2]
[388580940,1759245095106,-500.0,0.00038013,2]
[388580941,1759245095116,-500.0,0.00038013,2]
[388580942,1759245095126,-500.0,0.00038013,2]
[388580943,1759245095135,-500.0,0.00038013,2]
[388580944,1759245095145,-547.1213072,0.00038013,2]
[388580945,1759245095154,-500.0,0.00038013,2]
[388580947,1759245095317,-500.0,0.00038013,2]
[388580948,1759245095327,-561.25,0.00038013,2]
[388580949,1759245095343,-609.6,0.00038013,2]
[388580950,1759245095353,-651.62,0.00038013,2]
[388580951,1759245095362,-261.51,0.00038013,2]
[388580952,1759245095372,-414.45546412,0.00038013,2]
[388580953,1759245095382,-200.0,0.00038013,2]
[388580954,1759245095392,-500.0,0.00038013,2]
[388580955,1759245095402,-505.73139067,0.00038225,5]
[388580956,1759245095411,-160.0,0.00038268,9]
[388580957,1759245095421,-479.98,0.00038287,20]
[388580958,1759245095430,-500.0,0.00038287,2]
[388580959,1759245095440,-500.0,0.00038287,2]
[388580960,1759245095449,-500.0,0.00038287,2]
[388580961,1759245095458,-500.0,0.00038287,2]
[388580962,1759245095467,-512.23787467,0.00038287,2]
[388580963,1759245095478,-500.0,0.00038287,2]
[388580964,1759245095487,-500.0,0.00038287,2]
[388580965,1759245095497,-500.0,0.00038287,2]
[388580966,1759245095507,-500.0,0.00038287,2]
[388580967,1759245095517,-500.0,0.00038287,2]
[388580968,1759245095526,-500.0,0.00038287,2]
[388580969,1759245095536,-561.25,0.00038287,2]
[388580970,1759245095545,-609.6,0.00038287,2]
[388580971,1759245095554,-651.62,0.00038287,2]
[388580972,1759245095564,-200.0,0.00038287,2]
[388580973,1759245095573,-500.0,0.00038287,2]
[388580974,1759245095588,-999.0,0.00038356,120]
[388580975,1759245095597,-600.0,0.000384,2]
[388580976,1759245095607,-191.87325,0.00038409,14]
[388580977,1759245095616,-1500.0,0.00038443,2]
[388580978,1759245095626,-500.0,0.00038561,2]
[388580979,1759245095635,-500.0,0.00038561,2]
[388580980,1759245095645,-500.0,0.00038561,2]
[388580981,1759245095654,-582.83626728,0.00038561,2]
[388580982,1759245095665,-500.0,0.00038561,2]
[388580983,1759245095674,-500.0,0.00038561,2]
[388580984,1759245095683,-456.23941405,0.00038561,2]
[388580985,1759245095693,-500.0,0.00038561,2]
[388580986,1759245095702,-500.0,0.00038561,2]
[388580987,1759245095712,-500.0,0.00038561,2]
[388580988,1759245095721,-561.25,0.00038561,2]
[388580989,1759245095731,-609.6,0.00038561,2]
[388580990,1759245095740,-651.62,0.00038561,2]
[388580991,1759245095750,-200.0,0.00038561,2]
[388580992,1759245095759,-500.0,0.00038561,2]
[388580993,1759245095769,-979.0,0.00038761,2]
[388580994,1759245095779,-630.0,0.00038761,2]
[388580995,1759245095790,-600.0,0.000388,2]
[388580996,1759245095801,-479.98,0.00038835,21]
[388580997,1759245095810,-500.0,0.00038835,2]
[388580998,1759245095820,-500.0,0.00038835,2]
[388580999,1759245095834,-500.0,0.00038835,2]
[388581000,1759245095843,-500.0,0.00038835,2]
[388581001,1759245095853,-500.0,0.00038835,2]
[388581002,1759245095862,-500.0,0.00038835,2]
[388581003,1759245095872,-500.0,0.00038835,2]
[388581004,1759245095882,-500.0,0.00038835,2]
[388581005,1759245095893,-561.25,0.00038835,2]
[388581006,1759245095902,-609.6,0.00038835,2]
[388581007,1759245095912,-651.62,0.00038835,2]
[388581008,1759245095921,-200.0,0.00038835,2]
[388581009,1759245095932,-431.39759606,0.00038835,2]
[388581010,1759245095942,-189.44378083,0.00039,3]
[388581011,1759245095951,-233.92491258,0.00039,3]
[388581012,1759245095961,-500.0,0.00039109,2]
[388581013,1759245095971,-500.0,0.00039109,2]
[388581014,1759245095980,-500.0,0.00039109,2]
[388581015,1759245095990,-500.0,0.00039109,2]
[388581016,1759245095999,-500.0,0.00039109,2]
[388581017,1759245096008,-500.0,0.00039109,2]
[388581018,1759245096018,-500.0,0.00039109,2]
[388581019,1759245096027,-500.0,0.00039109,2]
[388581020,1759245096037,-561.25,0.00039109,2]
[388581021,1759245096046,-609.6,0.00039109,2]
[388581022,1759245096056,-651.62,0.00039109,2]
[388581023,1759245096065,-200.0,0.00039109,2]
[388581024,1759245096075,-999.0,0.00039178,120]
[388581025,1759245096087,-600.0,0.000392,2]
[388581026,1759245096097,-160.0,0.00039218,10]
[388581027,1759245096107,-593.422031,0.00039261,30]
[388581028,1759245096117,-324.4507868,0.00039261,30]
[388581029,1759245096126,-152.03477922,0.00039298,120]
[388581030,1759245096136,-479.98,0.00039383,22]
[388581031,1759245096145,-500.0,0.00039383,2]
[388581032,1759245096154,-500.0,0.00039383,2]
[388581033,1759245096165,-500.0,0.00039383,2]
[388581034,1759245096175,-500.0,0.00039383,2]
[388581035,1759245096184,-500.0,0.00039383,2]
[388581036,1759245096194,-500.0,0.00039383,2]
[388581037,1759245096203,-500.0,0.00039383,2]
[388581038,1759245096213,-500.0,0.00039383,2]
[388581039,1759245096223,-561.25,0.00039383,2]
[388581040,1759245096232,-609.6,0.00039383,2]
[388581041,1759245096242,-651.62,0.00039383,2]
[388581042,1759245096251,-177.89736308,0.00039383,2]
[388581043,1759245096260,-3787.67,0.000394,14]
[388581044,1759245096270,-1003.16137412,0.000395,2]
[388581045,1759245096280,-924.0877888,0.000396,2]
[388581046,1759245096290,-500.0,0.00039657,2]
[388581047,1759245096299,-500.0,0.00039657,2]
[388581048,1759245096309,-500.0,0.00039657,2]
[388581049,1759245096319,-500.0,0.00039657,2]
[388581050,1759245096328,-500.0,0.00039657,2]
[388581051,1759245096341,-500.0,0.00039657,2]
[388581052,1759245096350,-500.0,0.00039657,2]
[388581053,1759245096360,-500.0,0.00039657,2]
[388581054,1759245096369,-561.25,0.00039657,2]
[388581055,1759245096379,-609.6,0.00039657,2]
[388581056,1759245096388,-651.62,0.00039657,2]
[388581057,1759245096397,-376.679279,0.00039915,30]
[388581058,1759245096407,-153.0,0.00039915,30]
[388581059,1759245096416,-189.1492399,0.00039915,30]
[388581060,1759245096425,-153.0,0.00039915,30]
[388581061,1759245096438,-153.0,0.00039915,30]
[388581062,1759245096447,-153.0,0.00039915,30]
[388581063,1759245096456,-479.98,0.00039931,23]
[388581064,1759245096466,-500.0,0.00039931,2]
[388581065,1759245096475,-500.0,0.00039931,2]
[388581066,1759245096485,-500.0,0.00039931,2]
[388581067,1759245096495,-500.0,0.00039931,2]
[388581068,1759245096504,-500.0,0.00039931,2]
[388581069,1759245096513,-500.0,0.00039931,2]
[388581070,1759245096523,-500.0,0.00039931,2]
[388581071,1759245096532,-500.0,0.00039931,2]
[388581072,1759245096542,-561.25,0.00039931,2]
[388581073,1759245096551,-609.6,0.00039931,2]
[388581074,1759245096560,-651.62,0.00039931,2]
[388581075,1759245096569,-500.0,0.0004,2]
[388581076,1759245096578,-4000.0,0.0004,2]
[388581077,1759245096591,-999.0,0.0004,120]
[388581078,1759245096600,-233.92491258,0.0004,10]
[388581079,1759245096611,-189.44378083,0.0004,10]
[388581080,1759245096621,-200.0,0.00040023,120]
[388581081,1759245096630,-163.01009966,0.0004005,14]
[388581082,1759245096640,-172.0,0.0004005,14]
[388581083,1759245096650,-175.0,0.0004005,14]
[388581084,1759245096659,-175.0,0.0004005,14]
[388581085,1759245096668,-172.67800236,0.0004005,14]
[388581086,1759245096677,-156.0,0.0004005,14]
[388581087,1759245096686,-156.0,0.0004005,14]
[388581088,1759245096695,-156.0,0.0004005,14]
[388581089,1759245096704,-156.0,0.0004005,14]
[388581090,1759245096714,-156.48154873,0.0004005,14]
[388581091,1759245096724,-160.0,0.00040167,11]
[388581092,1759245096733,-163.75888643,0.00040167,5]
[388581093,1759245096743,-189.44378083,0.000402,3]
[388581094,1759245096752,-233.92491258,0.000402,3]
[388581095,1759245096762,-500.0,0.00040205,2]
[388581096,1759245096771,-500.0,0.00040205,2]
[388581097,1759245096786,-500.0,0.00040205,2]
[388581098,1759245096796,-500.0,0.00040205,2]
[388581099,1759245096807,-500.0,0.00040205,2]
[388581100,1759245096818,-500.0,0.00040205,2]
[388581101,1759245096829,-500.0,0.00040205,2]
[388581102,1759245096850,-500.0,0.00040205,2]
[388581103,1759245096862,-561.25,0.00040205,2]
[388581104,1759245096874,-609.6,0.00040205,2]
[388581105,1759245096885,-651.62,0.00040205,2]
[388581106,1759245096896,-500.0,0.00040237,5]
[388581107,1759245096911,-361.16038322,0.0004035,35]
[388581108,1759245096924,-101705.36826255,0.00040463,6]
[388581109,1759245096936,-479.98,0.00040479,24]
[388581110,1759245096948,-500.0,0.00040479,2]
[388581111,1759245096960,-622.49526925,0.00040479,2]
[388581112,1759245096972,-375.04145683,0.00040479,2]
[388581113,1759245096983,-500.0,0.00040479,2]
[388581114,1759245096995,-500.0,0.00040479,2]
[388581115,1759245097007,-500.0,0.00040479,2]
[388581116,1759245097019,-286.13984564,0.00040479,2]
[388581117,1759245097031,-500.0,0.00040479,2]
[388581118,1759245097042,-561.25,0.00040479,2]
[388581119,1759245097053,-609.6,0.00040479,2]
[388581120,1759245097065,-651.62,0.00040479,2]
[388581121,1759245097077,-998.115501,0.00040479,120]
[388581122,1759245097101,-998.115501,0.00040479,120]
[388581123,1759245097113,-998.115501,0.00040479,120]
[388581124,1759245097125,-998.115501,0.00040479,120]
[388581125,1759245097234,-293.531266,0.00040479,120]
[388581126,1759245097244,-151.0,0.00040479,120]
[388581127,1759245097254,-151.0,0.00040479,120]
[388581128,1759245097263,-151.0,0.00040479,120]
[388581129,1759245097273,-151.87596,0.00040479,120]
[388581130,1759245097283,-151.0,0.00040479,120]
[388581131,1759245097293,-151.0,0.00040479,120]
[388581132,1759245097303,-151.0,0.00040479,120]
[388581133,1759245097313,-151.0,0.00040479,120]
[388581134,1759245097323,-151.0,0.00040479,120]
[388581135,1759245097339,-151.0,0.00040479,120]
[388581136,1759245097349,-152.352463,0.00040479,120]
[388581137,1759245097359,-500.0,0.00040753,2]
[388581138,1759245097368,-500.0,0.00040753,2]
[388581139,1759245097377,-360.85533717,0.00040753,2]
[388581140,1759245097387,-500.0,0.00040753,2]
[388581141,1759245097396,-500.0,0.00040753,2]
[388581142,1759245097405,-561.25,0.00040753,2]
[388581143,1759245097415,-609.6,0.00040753,2]
[388581144,1759245097425,-651.62,0.00040753,2]
[388581145,1759245097435,-999.0,0.00040821,120]
[388581146,1759245097444,-479.98,0.00041027,25]
[388581147,1759245097454,-546.63251205,0.00041027,2]
[388581148,1759245097464,-153.95,0.00041027,2]
[388581149,1759245097474,-500.0,0.00041027,2]
[388581150,1759245097484,-248.75300234,0.00041027,2]
[388581151,1759245097494,-561.25,0.00041027,2]
[388581152,1759245097504,-609.6,0.00041027,2]
[388581153,1759245097514,-651.62,0.00041027,2]
[388581154,1759245097525,-500.0,0.00041096,31]
[388581155,1759245097535,-500.0,0.00041096,31]
[388581156,1759245097545,-425.25614483,0.00041096,31]